fUSD/lending_fUSD_20251112
["ID","MTS","AMOUNT","RATE_DAILY","PERIOD"]
[393685569,1762924247751,-500.0,0.00038598,20]
[393685570,1762924247760,-500.0,0.00038598,20]
[393685571,1762924247770,-603.34,0.00038598,20]
[393685572,1762924247779,-603.34,0.00038598,20]
[393685573,1762924247788,-1000.0,0.00038598,20]
[393685574,1762924247797,-1000.0,0.00038598,20]
[393685575,1762924247806,-516.09249622,0.00038598,20]
[393685576,1762924247816,-169.37452186,0.00038598,20]
[393685577,1762924247826,-500.0,0.00038598,20]
[393685578,1762924247846,-500.0,0.00038598,20]
[393685579,1762924247863,-547.82441939,0.00038598,20]
[393685580,1762924247873,-386.23834494,0.00038598,20]
[393685581,1762924247882,-500.0,0.00038598,20]
[393685582,1762924247891,-170.74325795,0.00038598,20]
[393685583,1762924247901,-500.0,0.00038598,20]
[393685584,1762924247911,-225.69095823,0.00038598,20]
[393685585,1762924247920,-300.15064756,0.00038598,20]
[393685586,1762924247930,-500.0,0.00038598,20]
[393685587,1762924247940,-251.45516361,0.00038598,20]
[393685588,1762924247949,-566.85572518,0.00038598,20]
[393685589,1762924247959,-513.30573183,0.00038598,20]
[393685590,1762924247968,-194.55300213,0.00038598,20]
[393685591,1762924247978,-500.0,0.00038598,20]
[393685592,1762924247989,-500.0,0.00038598,20]
[393685593,1762924247999,-301.35214363,0.00038598,20]
[393685594,1762924248008,-373.15254938,0.00038598,20]
[393685595,1762924248018,-500.0,0.00038598,20]
[393685596,1762924248028,-618.42237724,0.00038598,20]
[393685597,1762924248037,-500.0,0.00038598,20]
[393685598,1762924248047,-391.96461681,0.00038598,20]
[393685599,1762924248056,-500.0,0.00038598,20]
[393685600,1762924248066,-324.01081939,0.00038598,20]
[393685601,1762924248076,-500.0,0.00038598,20]
[393685602,1762924248089,-209.73499392,0.00038598,20]
[393685603,1762924248099,-275.25972564,0.00038598,20]
[393685604,1762924248108,-500.0,0.00038598,20]
[393685605,1762924248118,-500.0,0.00038598,20]
[393685606,1762924248129,-415.77377488,0.00038598,20]
[393685607,1762924248138,-500.0,0.00038598,20]
[393685608,1762924248147,-606.46246259,0.00038598,20]
[393685609,1762924248158,-322.2749533,0.00038598,20]
[393685610,1762924248168,-352.47408335,0.00038598,20]
[393685611,1762924248177,-538.54,0.00038598,20]
[393685612,1762924248186,-538.54,0.00038598,20]
[393685613,1762924248195,-500.0,0.00038598,20]
[393685614,1762924248204,-863.93,0.00038598,20]
[393685615,1762924248213,-176.24009447,0.00038598,20]
[393685616,1762924248224,-863.93,0.00038598,20]
[393685617,1762924248235,-500.0,0.00038598,20]
[393685618,1762924248247,-500.0,0.00038598,20]
[393685619,1762924248257,-500.0,0.00038598,20]
[393685620,1762924248266,-500.0,0.00038598,20]
[393685621,1762924248275,-500.0,0.00038598,20]
[393685622,1762924248284,-620.15308823,0.00038598,20]
[393685623,1762924248294,-500.0,0.00038598,20]
[393685624,1762924248305,-424.30507793,0.00038598,20]
[393685625,1762924248315,-524.73314468,0.00038598,20]
[393685626,1762924248325,-298.63599365,0.00038598,20]
[393685627,1762924248334,-500.0,0.00038598,20]
[393685628,1762924248344,-500.0,0.00038598,20]
[393685629,1762924248354,-500.0,0.00038598,20]
[393685630,1762924248363,-500.0,0.00038598,20]
[393685631,1762924248373,-310.43151186,0.00038598,20]
[393685632,1762924248382,-500.0,0.00038598,20]
[393685633,1762924248392,-489.13627313,0.00038598,20]
[393685634,1762924248401,-500.0,0.00038598,20]
[393685635,1762924248411,-500.0,0.00038598,20]
[393685636,1762924248421,-500.0,0.00038598,20]
[393685637,1762924248431,-164.86184051,0.00038598,20]
[393685638,1762924248441,-500.0,0.00038598,20]
[393685639,1762924248451,-414.56055485,0.00038598,20]
[393685640,1762924248461,-500.0,0.00038598,20]
[393685641,1762924248471,-500.0,0.00038598,20]
[393685642,1762924248481,-500.0,0.00038598,20]
[393685643,1762924248491,-526.44763624,0.00038598,20]
[393685644,1762924248501,-500.0,0.00038598,20]
[393685645,1762924248510,-500.0,0.00038598,20]
[393685646,1762924248521,-205.77569719,0.00038598,20]
[393685647,1762924248530,-500.0,0.00038598,20]
[393685648,1762924248540,-500.0,0.00038598,20]
[393685649,1762924248549,-442.77811595,0.00038598,20]
[393685650,1762924248558,-404.80204332,0.00038598,20]
[393685651,1762924248567,-597.09710149,0.00038598,20]
[393685652,1762924248576,-561.63456578,0.00038598,20]
[393685653,1762924248586,-500.0,0.00038598,20]
[393685654,1762924248595,-500.0,0.00038598,20]
[393685655,1762924248604,-519.38981487,0.00038598,20]
[393685656,1762924248613,-428.97296117,0.00038598,20]
[393685657,1762924248622,-500.0,0.00038598,20]
[393685658,1762924248631,-500.0,0.00038598,20]
[393685659,1762924248641,-500.0,0.00038598,20]
[393685660,1762924248650,-500.0,0.00038598,20]
[393685661,1762924248659,-500.0,0.00038598,20]
[393685662,1762924248668,-508.99322087,0.00038598,20]
[393685663,1762924248678,-154.18678807,0.00038598,20]
[393685664,1762924248687,-528.36779178,0.00038598,20]
[393685665,1762924248697,-500.0,0.00038598,20]
[393685666,1762924248706,-513.08792921,0.00038598,20]
[393685667,1762924248715,-345.31102338,0.00038598,20]
[393685668,1762924248724,-213.72508743,0.00038598,20]
[393685669,1762924248734,-500.0,0.00038598,20]
[393685670,1762924248744,-500.0,0.00038598,20]
[393685671,1762924248754,-320.60492524,0.00038598,20]
[393685672,1762924248763,-421.43905921,0.00038598,20]
[393685673,1762924248772,-500.0,0.00038598,20]
[393685674,1762924248782,-500.0,0.00038598,20]
[393685675,1762924248791,-500.0,0.00038598,20]
[393685676,1762924248801,-608.73483719,0.00038598,20]
[393685677,1762924248811,-500.0,0.00038598,20]
[393685678,1762924248820,-500.0,0.00038598,20]
[393685679,1762924248829,-500.0,0.00038598,20]
[393685680,1762924248838,-500.0,0.00038598,20]
[393685681,1762924248847,-500.0,0.00038598,20]
[393685682,1762924248856,-500.0,0.00038598,20]
[393685683,1762924248867,-444.67910097,0.00038598,20]
[393685684,1762924248876,-500.0,0.00038598,20]
[393685685,1762924248885,-500.0,0.00038598,20]
[393685686,1762924248895,-500.0,0.00038598,20]
[393685687,1762924248904,-509.19,0.00038598,20]
[393685688,1762924248914,-509.19,0.00038598,20]
[393685689,1762924248923,-500.0,0.00038598,20]
[393685690,1762924248932,-500.0,0.00038598,20]
[393685691,1762924248942,-417.13306642,0.00038598,20]
[393685692,1762924248951,-621.89225339,0.00038598,20]
[393685693,1762924248961,-500.0,0.00038598,20]
[393685694,1762924248971,-500.0,0.00038598,20]
[393685695,1762924248980,-500.0,0.00038598,20]
[393685696,1762924248989,-500.0,0.00038598,20]
[393685697,1762924248998,-409.87400074,0.00038598,20]
[393685698,1762924249007,-500.0,0.00038598,20]
[393685699,1762924249016,-553.25748785,0.00038598,20]
[393685700,1762924249025,-446.58720884,0.00038598,20]
[393685701,1762924249035,-500.0,0.00038598,20]
[393685702,1762924249044,-500.0,0.00038598,20]
[393685703,1762924249053,-500.0,0.00038598,20]
[393685704,1762924249063,-500.0,0.00038598,20]
[393685705,1762924249071,-523.04930078,0.00038598,20]
[393685706,1762924249084,-502.46904162,0.00038598,20]
[393685707,1762924249093,-500.0,0.00038598,20]
[393685708,1762924249101,-500.0,0.00038598,20]
[393685709,1762924249111,-500.0,0.00038598,20]
[393685710,1762924249120,-500.0,0.00038598,20]
[393685711,1762924249130,-500.0,0.00038598,20]
[393685712,1762924249140,-427.54401511,0.00038598,20]
[393685713,1762924249149,-500.0,0.00038598,20]
[393685714,1762924249159,-500.0,0.00038598,20]
[393685715,1762924249168,-500.0,0.00038598,20]
[393685716,1762924249177,-332.93653607,0.00038598,20]
[393685717,1762924249187,-521.29153531,0.00038598,20]
[393685718,1762924249196,-425.9395393,0.00038598,20]
[393685719,1762924249206,-500.0,0.00038598,20]
[393685720,1762924249215,-500.0,0.00038598,20]
[393685721,1762924249224,-451.73169772,0.00038598,20]
[393685722,1762924249233,-500.0,0.00038598,20]
[393685723,1762924249243,-270.57908801,0.00038598,20]
[393685724,1762924249251,-500.0,0.00038598,120]
[393685725,1762924249262,-500.0,0.00038598,120]
[393685726,1762924249271,-487.24668259,0.00038598,20]
[393685727,1762924249281,-500.0,0.00038598,20]
[393685728,1762924249416,-500.0,0.00038598,20]
[393685729,1762924249427,-500.0,0.00038598,20]
[393685730,1762924249436,-482.22500965,0.00038598,20]
[393685731,1762924249445,-500.0,0.00038598,20]
[393685732,1762924249455,-500.0,0.00038598,20]
[393685733,1762924249464,-500.0,0.00038598,20]
[393685734,1762924249474,-500.0,0.00038598,20]
[393685735,1762924249483,-500.0,0.00038598,20]
[393685736,1762924249492,-500.0,0.00038598,20]
[393685737,1762924249505,-523.81535913,0.00038598,20]
[393685738,1762924249516,-500.0,0.00038598,20]
[393685739,1762924249526,-500.0,0.00038598,20]
[393685740,1762924249536,-500.0,0.00038598,20]
[393685741,1762924249545,-512.46718402,0.00038598,20]
[393685742,1762924249555,-521.29,0.00038598,20]
[393685743,1762924249564,-521.29,0.00038598,20]
[393685744,1762924249573,-526.5973443,0.00038598,20]
[393685745,1762924249582,-452.34027239,0.00038598,20]
[393685746,1762924249593,-425.14955348,0.00038598,20]
[393685747,1762924249603,-500.0,0.00038598,20]
[393685748,1762924249615,-603.1958783,0.00038598,20]
[393685749,1762924249625,-500.0,0.00038598,20]
[393685750,1762924249635,-603.12,0.00038598,20]
[393685751,1762924249647,-603.12,0.00038598,20]
[393685752,1762924249658,-208.83957544,0.00038598,20]
[393685753,1762924249667,-339.88697033,0.00038598,20]
[393685754,1762924249676,-500.0,0.00038598,20]
[393685755,1762924249685,-500.0,0.00038598,20]
[393685756,1762924249694,-500.0,0.00038598,20]
[393685757,1762924249707,-467.96017331,0.00038598,20]
[393685758,1762924249716,-500.0,0.00038598,2]
[393685759,1762924249726,-596.58297242,0.00038598,20]
[393685760,1762924249736,-500.0,0.00038598,2]
[393685761,1762924249745,-500.0,0.00038598,20]
[393685762,1762924249754,-368.53403931,0.00038598,20]
[393685763,1762924249764,-500.0,0.00038598,20]
[393685764,1762924249773,-500.0,0.00038598,20]
[393685765,1762924249783,-500.0,0.00038598,20]
[393685766,1762924249793,-500.0,0.00038598,20]
[393685767,1762924249802,-500.0,0.00038598,20]
[393685768,1762924249812,-543.44240419,0.00038598,20]
[393685769,1762924249821,-303.41876755,0.00038598,20]
[393685770,1762924249831,-500.0,0.00038598,20]
[393685771,1762924249841,-500.0,0.00038598,20]
[393685772,1762924249850,-500.0,0.00038598,20]
[393685773,1762924249860,-500.0,0.00038598,20]
[393685774,1762924249869,-500.0,0.00038598,20]
[393685775,1762924249879,-500.0,0.00038598,20]
[393685776,1762924249888,-500.0,0.00038598,20]
[393685777,1762924249900,-500.0,0.00038598,20]
[393685778,1762924249910,-500.0,0.00038598,20]
[393685779,1762924249920,-500.0,0.00038598,20]
[393685780,1762924249930,-500.0,0.00038598,20]
[393685781,1762924249939,-632.45125664,0.00038598,20]
[393685782,1762924249949,-500.0,0.00038598,20]
[393685783,1762924249959,-500.0,0.00038598,20]
[393685784,1762924249968,-500.0,0.00038598,20]
[393685785,1762924249977,-500.0,0.00038598,20]
[393685786,1762924249987,-500.0,0.00038598,20]
[393685787,1762924249997,-500.0,0.00038598,20]
[393685788,1762924250007,-500.0,0.00038598,20]
[393685789,1762924250016,-543.34,0.00038598,20]
[393685790,1762924250025,-500.0,0.00038598,20]
[393685791,1762924250035,-500.0,0.00038598,20]
[393685792,1762924250044,-500.0,0.00038598,20]
[393685793,1762924250054,-543.34,0.00038598,20]
[393685794,1762924250063,-500.0,0.00038598,20]
[393685795,1762924250072,-537.27227651,0.00038598,20]
[393685796,1762924250082,-500.0,0.00038598,20]
[393685797,1762924250094,-196.2467722,0.00038598,20]
[393685798,1762924250103,-507.48645731,0.00038598,20]
[393685799,1762924250113,-500.0,0.00038598,20]
[393685800,1762924250122,-500.0,0.00038598,20]
[393685801,1762924250135,-500.0,0.00038598,20]
[393685802,1762924250144,-500.0,0.00038598,20]
[393685803,1762924250154,-500.0,0.00038598,20]
[393685804,1762924250165,-487.62945193,0.00038598,20]
[393685805,1762924250181,-500.0,0.00038598,20]
[393685806,1762924250199,-369.46720624,0.00038598,20]
[393685807,1762924250216,-297.22511826,0.00038598,20]
[393685808,1762924250235,-700.59,0.00038598,20]
[393685809,1762924250252,-700.59,0.00038598,20]
[393685810,1762924250275,-607.19056721,0.00038598,20]
[393685811,1762924250305,-514.47858633,0.00038598,20]
[393685812,1762924250327,-500.0,0.00038598,20]
[393685813,1762924250348,-500.0,0.00038598,20]
[393685814,1762924250368,-500.0,0.00038598,20]
[393685815,1762924250387,-311.50056147,0.00038598,20]
[393685816,1762924250410,-500.0,0.00038598,20]
[393685817,1762924250432,-534.7852418,0.00038598,20]
[393685818,1762924250448,-500.0,0.00038598,20]
[393685819,1762924250467,-500.0,0.00038598,20]
[393685820,1762924250479,-500.0,0.00038598,20]
[393685821,1762924250497,-500.0,0.00038598,20]
[393685822,1762924250511,-500.0,0.00038598,20]
[393685823,1762924250528,-579.74435378,0.00038598,20]
[393685824,1762924250546,-500.0,0.00038598,20]
[393685825,1762924250564,-500.0,0.00038598,20]
[393685826,1762924250580,-322.14851698,0.00038598,20]
[393685827,1762924250596,-500.0,0.00038598,20]
[393685828,1762924250610,-500.0,0.00038598,20]
[393685829,1762924250624,-500.0,0.00038598,20]
[393685830,1762924250639,-539.68533905,0.00038598,20]
[393685831,1762924250653,-500.0,0.00038598,20]
[393685832,1762924250668,-500.0,0.00038598,20]
[393685833,1762924250683,-500.0,0.00038598,20]
[393685834,1762924250698,-500.0,0.00038598,20]
[393685835,1762924250714,-500.0,0.00038598,20]
[393685836,1762924250728,-500.0,0.00038598,20]
[393685837,1762924250742,-500.0,0.00038598,20]
[393685838,1762924250756,-500.0,0.00038598,20]
[393685839,1762924250771,-500.0,0.00038598,20]
[393685840,1762924250785,-251.58196837,0.00038598,20]
[393685841,1762924250800,-500.0,0.00038598,20]
[393685842,1762924250814,-500.0,0.00038598,20]
[393685843,1762924250828,-500.0,0.00038598,20]
[393685844,1762924250842,-500.0,0.00038598,20]
[393685845,1762924250856,-500.0,0.00038598,20]
[393685846,1762924250870,-500.0,0.00038598,20]
[393685847,1762924250884,-500.0,0.00038598,20]
[393685848,1762924250898,-500.0,0.00038598,20]
[393685849,1762924250912,-461.34556341,0.00038598,20]
[393685850,1762924250927,-178.54505445,0.00038598,20]
[393685851,1762924250941,-500.0,0.00038598,20]
[393685852,1762924250954,-564.47,0.00038598,20]
[393685853,1762924250969,-564.47,0.00038598,20]
[393685854,1762924250983,-243.11842268,0.00038598,20]
[393685855,1762924250998,-595.02417111,0.00038598,20]
[393685856,1762924251012,-500.0,0.00038598,20]
[393685857,1762924251026,-500.0,0.00038598,20]
[393685858,1762924251041,-500.0,0.00038598,20]
[393685859,1762924251055,-500.0,0.00038598,20]
[393685860,1762924251070,-500.0,0.00038598,20]
[393685861,1762924251086,-500.0,0.00038598,20]
[393685862,1762924251100,-564.03040015,0.00038598,20]
[393685863,1762924251115,-500.0,0.00038598,20]
[393685864,1762924251128,-500.0,0.00038598,20]
[393685865,1762924251143,-208.97093003,0.00038598,20]
[393685866,1762924251158,-500.0,0.00038598,20]
[393685867,1762924251172,-500.0,0.00038598,20]
[393685868,1762924251187,-500.0,0.00038598,20]
[393685869,1762924251201,-500.0,0.00038598,20]
[393685870,1762924251214,-500.0,0.00038598,20]
[393685871,1762924251228,-296.64367984,0.00038598,20]
[393685872,1762924251242,-500.0,0.00038598,20]
[393685873,1762924251256,-500.0,0.00038598,20]
[393685874,1762924251269,-500.0,0.00038598,20]
[393685875,1762924251285,-500.0,0.00038598,20]
[393685876,1762924251300,-500.0,0.00038598,20]
[393685877,1762924251310,-476.11120023,0.00038598,20]
[393685878,1762924251319,-307.85180254,0.00038598,20]
[393685879,1762924251329,-500.0,0.00038598,20]
[393685880,1762924251338,-347.41095185,0.00038598,20]
[393685881,1762924251348,-500.0,0.00038598,7]
[393685882,1762924251358,-500.0,0.00038598,7]
[393685883,1762924251368,-500.0,0.00038598,20]
[393685884,1762924251378,-500.0,0.00038598,20]
[393685885,1762924251595,-516.42275798,0.00038598,20]
[393685886,1762924251616,-500.0,0.00038598,20]
[393685887,1762924251626,-303.21563199,0.00038598,20]
[393685888,1762924251636,-422.8746524,0.00038598,20]
[393685889,1762924251645,-500.0,0.00038598,20]
[393685890,1762924251655,-500.0,0.00038598,20]
[393685891,1762924251664,-174.94496369,0.00038598,20]
[393685892,1762924251674,-500.0,0.00038598,20]
[393685893,1762924251683,-500.0,0.00038598,20]
[393685894,1762924251693,-396.23375335,0.00038598,20]
[393685895,1762924251703,-500.0,0.00038598,20]
[393685896,1762924251712,-500.0,0.00038598,20]
[393685897,1762924251722,-429.66294266,0.00038598,20]
[393685898,1762924251731,-500.0,0.00038598,20]
[393685899,1762924251741,-500.0,0.00038598,20]
[393685900,1762924251750,-500.0,0.00038598,20]
[393685901,1762924251763,-500.0,0.00038598,20]
[393685902,1762924251778,-528.25593589,0.00038598,20]
[393685903,1762924251787,-500.0,0.00038598,20]
[393685904,1762924251797,-202.67679593,0.00038598,20]
[393685905,1762924251807,-500.0,0.00038598,20]
[393685906,1762924251816,-500.0,0.00038598,20]
[393685907,1762924251826,-523.5195773,0.00038598,20]
[393685908,1762924251835,-500.0,0.00038598,20]
[393685909,1762924251845,-500.0,0.00038598,20]
[393685910,1762924251855,-540.72242599,0.00038598,20]
[393685911,1762924251865,-235.84505932,0.00038598,20]
[393685912,1762924251874,-500.0,0.00038598,20]
[393685913,1762924251883,-500.0,0.00038598,20]
[393685914,1762924251893,-500.0,0.00038598,20]
[393685915,1762924251903,-544.64,0.00038598,20]
[393685916,1762924251913,-500.0,0.00038598,20]
[393685917,1762924251923,-544.64,0.00038598,20]
[393685918,1762924251932,-614.63068439,0.00038598,20]
[393685919,1762924251942,-500.0,0.00038598,20]
[393685920,1762924251951,-500.0,0.00038598,20]
[393685921,1762924251960,-500.0,0.00038598,20]
[393685922,1762924251970,-628.45,0.00038598,20]
[393685923,1762924251980,-500.0,0.00038598,20]
[393685924,1762924251989,-500.0,0.00038598,20]
[393685925,1762924251998,-628.45,0.00038598,20]
[393685926,1762924252008,-500.0,0.00038598,20]
[393685927,1762924252018,-500.0,0.00038598,20]
[393685928,1762924252027,-500.0,0.00038598,20]
[393685929,1762924252037,-500.0,0.00038598,20]
[393685930,1762924252046,-500.0,0.00038598,20]
[393685931,1762924252056,-500.0,0.00038598,20]
[393685932,1762924252065,-588.0638485,0.00038598,20]
[393685933,1762924252075,-333.99227457,0.00038598,20]
[393685934,1762924252088,-500.0,0.00038598,20]
[393685935,1762924252097,-500.0,0.00038598,20]
[393685936,1762924252107,-935.46,0.00038598,2]
[393685937,1762924252116,-935.46,0.00038598,2]
[393685938,1762924252126,-166.60280515,0.00038598,20]
[393685939,1762924252137,-500.0,0.00038598,20]
[393685940,1762924252146,-307.46797566,0.00038598,20]
[393685941,1762924252156,-500.0,0.00038598,20]
[393685942,1762924252168,-508.10909945,0.00038598,20]
[393685943,1762924252178,-500.0,0.00038598,20]
[393685944,1762924252187,-431.73463081,0.00038598,20]
[393685945,1762924252198,-500.0,0.00038598,20]
[393685946,1762924252208,-500.0,0.00038598,20]
[393685947,1762924252219,-500.0,0.00038598,20]
[393685948,1762924252230,-502.47413758,0.00038598,20]
[393685949,1762924252241,-500.0,0.00038598,20]
[393685950,1762924252252,-306.10478781,0.00038598,20]
[393685951,1762924252264,-191.34697931,0.00038598,20]
[393685952,1762924252275,-500.0,0.00038598,20]
[393685953,1762924252286,-850.05,0.00038598,20]
[393685954,1762924252298,-850.05,0.00038598,20]
[393685955,1762924252309,-804.34,0.00038598,20]
[393685956,1762924252321,-500.0,0.00038598,20]
[393685957,1762924252332,-804.34,0.00038598,20]
[393685958,1762924252342,-500.0,0.00038598,20]
[393685959,1762924252353,-500.0,0.00038598,20]
[393685960,1762924252365,-515.6337341,0.00038598,20]
[393685961,1762924252376,-500.0,0.00038598,20]
[393685962,1762924252386,-268.23783738,0.00038598,20]
[393685963,1762924252396,-196.87296268,0.00038598,20]
[393685964,1762924252407,-500.0,0.00038598,20]
[393685965,1762924252423,-164.24173502,0.00038598,20]
[393685966,1762924252433,-500.0,0.00038598,20]
[393685967,1762924252444,-500.0,0.00038598,20]
[393685968,1762924252456,-550.93172946,0.00038598,20]
[393685969,1762924252467,-565.04415554,0.00038598,20]
[393685970,1762924252477,-500.0,0.00038598,20]
[393685971,1762924252493,-464.68167995,0.00038598,20]
[393685972,1762924252503,-500.0,0.00038598,20]
[393685973,1762924252512,-500.0,0.00038598,20]
[393685974,1762924252523,-500.0,0.00038598,20]
[393685975,1762924252533,-1440.7,0.00038598,20]
[393685976,1762924252542,-994.32,0.00038598,20]
[393685977,1762924252551,-500.0,0.00038598,20]
[393685978,1762924252561,-500.0,0.00038598,20]
[393685979,1762924252570,-994.32,0.00038598,20]
[393685980,1762924252579,-1440.7,0.00038598,20]
[393685981,1762924252588,-500.0,0.00038598,20]
[393685982,1762924252596,-500.0,0.00038598,20]
[393685983,1762924252606,-422.01624957,0.00038598,20]
[393685984,1762924252615,-500.0,0.00038598,20]
[393685985,1762924252623,-500.0,0.00038598,20]
[393685986,1762924252630,-500.0,0.00038598,20]
[393685987,1762924252638,-500.0,0.00038598,20]
[393685988,1762924252645,-356.33574389,0.00038598,20]
[393685989,1762924252654,-500.0,0.00038598,20]
[393685990,1762924252667,-500.0,0.00038598,20]
[393685991,1762924252673,-500.0,0.00038598,20]
[393685992,1762924252681,-746.44,0.00038598,20]
[393685993,1762924252688,-746.44,0.00038598,20]
[393685994,1762924252696,-500.0,0.00038598,20]
[393685995,1762924252705,-631.40327244,0.00038598,20]
[393685996,1762924252715,-490.57257766,0.00038598,20]
[393685997,1762924252725,-537.54158613,0.00038598,20]
[393685998,1762924252734,-500.0,0.00038598,20]
[393685999,1762924252744,-547.31342835,0.00038598,20]
[393686000,1762924252753,-373.30798458,0.00038598,20]
[393686001,1762924252763,-513.87827695,0.00038598,20]
[393686002,1762924252773,-559.71,0.00038598,20]
[393686003,1762924252782,-559.71,0.00038598,20]
[393686004,1762924252792,-550.76,0.00038598,20]
[393686005,1762924252801,-500.0,0.00038598,20]
[393686006,1762924252811,-550.76,0.00038598,20]
[393686007,1762924252820,-500.0,0.00038598,20]
[393686008,1762924252830,-500.0,0.00038598,20]
[393686009,1762924252840,-500.0,0.00038598,20]
[393686010,1762924252849,-208.67835101,0.00038598,20]
[393686011,1762924252859,-249.4826976,0.00038598,20]
[393686012,1762924252868,-500.0,0.00038598,20]
[393686013,1762924252877,-500.0,0.00038598,20]
[393686014,1762924252887,-538.90505053,0.00038598,20]
[393686015,1762924252896,-500.0,0.00038598,20]
[393686016,1762924252905,-500.0,0.00038598,20]
[393686017,1762924252917,-375.76994771,0.00038598,20]
[393686018,1762924252926,-1104.97,0.00038598,20]
[393686019,1762924252935,-1104.97,0.00038598,20]
[393686020,1762924252945,-500.0,0.00038598,20]
[393686021,1762924252955,-500.0,0.00038598,20]
[393686022,1762924252965,-256.01720084,0.00038598,20]
[393686023,1762924252975,-520.58491556,0.00038598,20]
[393686024,1762924252984,-500.0,0.00038598,20]
[393686025,1762924252993,-500.0,0.00038598,20]
[393686026,1762924253003,-500.0,0.00038598,20]
[393686027,1762924253012,-500.0,0.00038598,20]
[393686028,1762924253021,-500.0,0.00038598,20]
[393686029,1762924253031,-500.0,0.00038598,20]
[393686030,1762924253041,-500.0,0.00038598,20]
[393686031,1762924253051,-1016.04,0.00038598,20]
[393686032,1762924253061,-1016.04,0.00038598,20]
[393686033,1762924253071,-500.0,0.00038598,20]
[393686034,1762924253084,-500.0,0.00038598,20]
[393686035,1762924253094,-500.0,0.00038598,20]
[393686036,1762924253103,-500.0,0.00038598,20]
[393686037,1762924253112,-233.1677504,0.00038598,20]
[393686038,1762924253123,-681.98,0.00038598,20]
[393686039,1762924253133,-1403.56,0.00038598,20]
[393686040,1762924253142,-681.98,0.00038598,20]
[393686041,1762924253152,-500.0,0.00038598,20]
[393686042,1762924253163,-1403.56,0.00038598,20]
[393686043,1762924253173,-500.0,0.00038598,20]
[393686044,1762924253183,-500.0,0.00038598,20]
[393686045,1762924253193,-178.09329404,0.00038598,20]
[393686046,1762924253203,-500.0,0.00038598,20]
[393686047,1762924253213,-500.0,0.00038598,20]
[393686048,1762924253223,-532.58656732,0.00038598,20]
[393686049,1762924253234,-500.0,0.00038598,20]
[393686050,1762924253243,-500.0,0.00038598,20]
[393686051,1762924253253,-500.0,0.00038598,20]
[393686052,1762924253262,-428.16461112,0.00038598,20]
[393686053,1762924253271,-500.0,0.00038598,20]
[393686054,1762924253281,-633.06849111,0.00038598,20]
[393686055,1762924253290,-1318.08,0.00038598,20]
[393686056,1762924253299,-500.0,0.00038598,20]
[393686057,1762924253309,-1318.08,0.00038598,20]
[393686058,1762924253319,-818.3,0.00038598,20]
[393686059,1762924253328,-500.0,0.00038598,20]
[393686060,1762924253338,-818.3,0.00038598,20]
[393686061,1762924253347,-500.0,0.00038598,20]
[393686062,1762924253357,-345.53565736,0.00038598,20]
[393686063,1762924253367,-500.0,0.00038598,20]
[393686064,1762924253376,-500.0,0.00038598,20]
[393686065,1762924253385,-579.348158,0.00038598,20]
[393686066,1762924253395,-588.23388764,0.00038598,20]
[393686067,1762924253404,-524.1033703,0.00038598,20]
[393686068,1762924253417,-393.65511723,0.00038598,20]